Workbook

Sheet PRICING SCHEDULE
B1: SUPPLY CHAIN MANAGEMENT
B2: Pricing schedule
A3: RFx No | B3: RFB 2753/2023
A4: RFx Title | B4: Upgrade of Medium Voltage Electrical Infrastructure at Centurion and Beta Data Centres
A5: Bidder Name
A7: 1. INSTRUCTION FOR COMPLETING THE PRICING SCHEDULE
A8: (a) Bidder must complete/enter YELLOW cells only
A9: (b) Unit and Line prices must be VAT EXCLUSIVE and in South African Rand (ZAR) currency.
A10: (c) The price must include all cost to deliver the goods or render the service, including all applicable taxes, duty fees, logistics/delivery, storage, labour, overtime and subsistance and travel
F12: TOTAL
A13: Item No | B13: Goods/Service description | C13: Unit of measure | D13: Qty | E13: Unit Cost | F13: Line Price Term (Excl VAT) | G13: BRAND / MODEL | H13: Price clarification comment
A15: CENTURION DATA CENTRE
A16: =1 -> 1 | B16: PRELIMINARY AND GENERAL | F16: =SUBTOTAL(9, F17:F20) -> 0
A17: =A16+0.1 -> 1.1 | B17: Preliminary and General work, services meetings and inspections for which no specific items are listed in the price schedule. | C17: Lump Sum | D17: 1 | F17: =E17*D17 -> 0
A18: =A17+0.1 -> 1.2 | B18: Documents, Drawings, and Manufacturing and Commissioning Data Books | C18: Lump Sum | D18: 1 | F18: =E18*D18 -> 0
A19: 1.3 | B19: Provide "as-built" drawings | C19: Lump Sum | D19: 1 | F19: 0
A20: 1.4 | B20: Provide and maintain a quality system | C20: Lump Sum | D20: 1 | F20: 0
A21: =A16+1 -> 2 | B21: CONTRACTORS SITE ESTABLISHMENT | F21: =SUBTOTAL(9, F22:F22) -> 0
A22: =A21+0.1 -> 2.1 | B22: Fixed charges | C22: Lump Sum | D22: 1 | F22: =E22*D22 -> 0
A23: =A21+1 -> 3 | B23: 11KV SWITCHBOARDS - DESIGN, MANUFACTURE AND TEST Full compensation for the contractor's obligations to comply with the general design criteria shall be included in the tendered rates for the relevant items of equipment specified in other sections of these specifications | F23: =SUBTOTAL(9,F24:F28) -> 0
A24: =A23+0.1 -> 3.1 | B24: INCOMER PANEL | C24: Each | D24: 2 | F24: =E24*D24 -> 0
A25: =A24+0.1 -> 3.2 | B25: TRANSFORMER FEEDER PANEL | C25: Each | D25: 4 | F25: 0
A26: 3.3 | B26: PFC FEEDER PANEL | C26: Each | D26: 1 | F26: 0
A27: 3.4 | B27: 110V DC BATTERY CHARGER | C27: Each | D27: 1 | F27: =E27*D27 -> 0
A28: 3.5 | B28: POWER FACTOR CORRECTION | C28: Each | D28: 1 | F28: =E28*D28 -> 0
A29: =A23+1 -> 4 | B29: 11KV SWITCHBOARDS - FACTORY ACCEPTANCE TESTING All costs for equipment, labour and other expenses for the factory testing of equipment shall be included in the tendered rates for testing. All additional tests specified in the standard and detail specifications shall also be included in the tendered rates. | F29: =SUBTOTAL(9,F30:F34) -> 0
A30: =A29+0.1 -> 4.1 | B30: INCOMER PANEL | C30: Each | D30: 2 | F30: =E30*D30 -> 0
A31: =A30+0.1 -> 4.2 | B31: TRANSFORMER FEEDER PANEL | C31: Each | D31: 4 | F31: 0
A32: 4.3 | B32: PFC FEEDER PANEL | C32: Each | D32: 1 | F32: 0
A33: 4.4 | B33: 110V DC BATTERY CHARGER | C33: Each | D33: 1 | F33: =E33*D33 -> 0
A34: 4.5 | B34: POWER FACTOR CORRECTION | C34: Each | D34: 1 | F34: =E34*D34 -> 0
A35: =A29+1 -> 5 | B35: 11KV SWITCHBOARDS - DELIVERY AND OFF-LOADING All costs for preparing panels for shipping loading at works, transportation from works to site. Cost for packing material, wrapping or crating of panels to be included. Cost for off loading on site and placing panels in designated laydown area including required barricading and protection on site | F35: =SUBTOTAL(9,F36:F40) -> 0
A36: =A35+0.1 -> 5.1 | B36: INCOMER PANEL | C36: Each | D36: 2 | F36: =E36*D36 -> 0
A37: =A36+0.1 -> 5.2 | B37: TRANSFORMER FEEDER PANEL | C37: Each | D37: 4 | F37: 0
A38: 5.3 | B38: PFC FEEDER PANEL | C38: Each | D38: 1 | F38: 0
A39: 5.4 | B39: 110V DC BATTERY CHARGER | C39: Each | D39: 1 | F39: =E39*D39 -> 0
A40: 5.5 | B40: POWER FACTOR CORRECTION | C40: Each | D40: 1 | F40: =E40*D40 -> 0
A41: =A35+1 -> 6 | B41: 11KV SWITCHBOARDS - REMOVAL AND DISPOSAL All costs for equipment, labour and other expenses for the on-site removal of the existing switchgear shall be included in the tendered rates. Disconnecting of existing cables, marking of cable cores for cables that are to be reused to be included. Disconnecting of panel interconnecting bolts busbar bolts and removal of Pnaels from room, loading and Transportation off site for Disposal of the Panels off site. Disposal Certificate to be submitted and Disposed equipment to be Credited to SITA | F41: =SUBTOTAL(9,F42:F46) -> 0
A42: =A41+0.1 -> 6.1 | B42: INCOMER PANEL | C42: Each | D42: 2 | F42: =E42*D42 -> 0
A43: =A42+0.1 -> 6.2 | B43: TRANSFORMER FEEDER PANEL | C43: Each | D43: 4 | F43: 0
A44: 6.3 | B44: PFC FEEDER PANEL | C44: Each | D44: 1 | F44: 0
A45: 6.4 | B45: DC BATTERY CHARGER | C45: Each | D45: 1 | F45: =E45*D45 -> 0
A46: 6.5 | B46: POWER FACTOR CORRECTION UNIT | C46: Each | D46: 1 | F46: =E46*D46 -> 0
A47: =A41+1 -> 7 | B47: 11KV SWITCHBOARDS - INSTALL All cost for moving of the panels from designated storage area into the room to be included. Removal of pacckage materials, placing panels in position, installation of busbars as well as bolting down to floor. | F47: =SUBTOTAL(9,F48:F52) -> 0
A48: =A47+0.1 -> 7.1 | B48: INCOMER PANEL | C48: Each | D48: 2 | F48: =E48*D48 -> 0
A49: =A48+0.1 -> 7.2 | B49: TRANSFORMER FEEDER PANEL | C49: Each | D49: 4 | F49: 0
A50: 7.3 | B50: PFC FEEDER PANEL | C50: Each | D50: 1 | F50: 0
A51: 7.4 | B51: 110V DC BATTERY CHARGER | C51: Each | D51: 1 | F51: =E51*D51 -> 0
A52: 7.5 | B52: POWER FACTOR CORRECTION | C52: Each | D52: 1 | F52: =E52*D52 -> 0
A53: =A47+1 -> 8 | B53: 11KV SWITCHBOARDS - COMMISSIONING All costs for equipment, labour and other expenses for the on-site testing and commissioning of equipment shall be included in the tendered rates for testing and commissioning as set out in the measurement and payment clauses of each piece of equipment and in the schedule of quantities. Any additional tests specified in the standard and detail specifications shall also be included in the tendered rates. | F53: =SUBTOTAL(9,F54:F59) -> 0
A54: =A53+0.1 -> 8.1 | B54: INCOMER PANEL | C54: Each | D54: 2 | F54: =E54*D54 -> 0
A55: =A54+0.1 -> 8.2 | B55: TRANSFORMER FEEDER PANEL | C55: Each | D55: 4 | F55: 0
A56: 8.3 | B56: PFC FEEDER PANEL | C56: Each | D56: 1 | F56: 0
A57: 8.4 | B57: 110V DC BATTERY CHARGER | C57: Each | D57: 1 | F57: =E57*D57 -> 0
A58: 8.5 | B58: POWER FACTOR CORRECTION | C58: Each | D58: 1 | F58: =E58*D58 -> 0
A59: 8.6 | B59: COMPLETE SWITCHBOARD ASSEMBLY | C59: Sum | D59: 1 | F59: 0
A60: =A53+1 -> 9 | B60: SUPPLY, DELIVER AND OFF LOADING OF LOW VOLTAGE PVC FIRE RETARDENT CABLES TO SITE | F60: =SUBTOTAL(9,F61) -> 0
A61: =A60+0.1 -> 9.1 | B61: 2.4 mm2, 7-core, Cu PVC/PVC/SWA/PVC 600/1000V SABS 1507 | C61: metres | D61: 100 | F61: =E61*D61 -> 0
A62: =A60+1 -> 10 | B62: DISCONNECTING OF LOW VOLTAGE POWER CABLES | F62: =SUBTOTAL(9,F63) -> 0
A63: =A62+0.1 -> 10.1 | B63: 2.4 mm2, 7-core, Cu PVC/PVC/SWA/PVC 600/1000V SABS 1507 | C63: Each | D63: 8 | F63: =E63*D63 -> 0
A64: =A62+1 -> 11 | B64: REMOVAL OF LOW VOLTAGE CONTROL CABLES | F64: =SUBTOTAL(9,F65) -> 0
A65: =A64+0.1 -> 11.1 | B65: 2.4 mm2, 7-core, Cu PVC/PVC/SWA/PVC 600/1000V SABS 1507 | C65: metres | D65: 100 | F65: =E65*D65 -> 0
A66: =A64+1 -> 12 | B66: INSTALLATION OF LOW VOLTAGE POWER CABLES | F66: =SUBTOTAL(9,F67) -> 0
A67: =A66+0.1 -> 12.1 | B67: 2.4 mm2, 7-core, Cu PVC/PVC/SWA/PVC 600/1000V SABS 1507 | C67: metres | D67: 100 | F67: =E67*D67 -> 0
A68: =A66+1 -> 13 | B68: TERMINATION OF LOW VOLTAGE POWER CABLES | F68: =SUBTOTAL(9,F69) -> 0
A69: =A68+0.1 -> 13.1 | B69: 2.4 mm2, 7-core, Cu PVC/PVC/SWA/PVC 600/1000V SABS 1507 | C69: Each | D69: 8 | F69: =+E69*D69 -> 0
A70: =A68+1 -> 14 | B70: TESTING OF LOW VOLTAGE CONTROL CABLES | F70: =SUBTOTAL(9,F71) -> 0
A71: =A70+0.1 -> 14.1 | B71: 2.4 mm2, 7-core, Cu PVC/PVC/SWA/PVC 600/1000V SABS 1507 | C71: metres | D71: 50 | F71: =E71*D71 -> 0
A72: =A70+1 -> 15 | B72: SUPPLY, DELIVER AND OFF LOADING OF MEDIUM VOLTAGE CROSS-LINKED POLYETHELENE INSULATED FIRE RETARDENT POWER CABLES | F72: =SUBTOTAL(9,F73:F74) -> 0
A73: =A72+0.1 -> 15.1 | B73: 240 mm2, 1-core, Type A 6.35/11kV | C73: metres | D73: 100 | F73: =E73*D73 -> 0
A74: =A73+0.1 -> 15.2 | B74: 185 mm2, 3-core, Type A 6.35/11kV | C74: metres | D74: 100 | F74: 0
A75: =A72+1 -> 16 | B75: SUPPLY, DELIVER AND OFF LOADING OF MEDIUM VOLTAGE TRIFOCATING JOINTS | F75: =SUBTOTAL(9,F76) -> 0
A76: =A75+0.1 -> 16.1 | B76: XLPE 3 x 1c x 240mm2 Cu to PILC 1 x 3c x 240mm2 Cu 6.35/11kV | C76: Each | D76: 8 | F76: =E76*D76 -> 0
A77: =A75+1 -> 17 | B77: SUPPLY AND DELIVERY OF MEDIUM VOLTAGE INDOOR CABLE TERMINATION KITS | F77: =SUBTOTAL(9,F78:F80) -> 0
A78: =A77+0.1 -> 17.1 | B78: PILC 3c x 240mm2 6.35/11kV | C78: Each | D78: 4 | F78: =E78*D78 -> 0
A79: =A78+0.1 -> 17.2 | B79: XLPE 1c x 240mm2 6.35/11kV | C79: Each | D79: 12 | F79: 0
A80: 17.3 | B80: XLPE 3c x 185mm2 6.35/11kV | C80: Each | D80: 16 | F80: 0
A81: =A77+1 -> 18 | B81: DISCONNECTING OF MEDIUM VOLTAGE POWER CABLES | F81: =SUBTOTAL(9,F82:F83) -> 0
A82: =A81+0.1 -> 18.1 | B82: PILC 3c x 240mm2 6.35/11kV | C82: Each | D82: 2 | F82: =E82*D82 -> 0
A83: =A82+0.1 -> 18.2 | B83: XLPE 3 x 3c x 185mm2 6.35/11kV | C83: Each | D83: 8 | F83: 0
A84: =A81+1 -> 19 | B84: REMOVAL OF MEDIUM VOLTAGE POWER CABLES Rate to include for opening of cable ways breaking of fire proofing and loading and disposal of cables | F84: =SUBTOTAL(9,F85) -> 0
A85: =A84+0.1 -> 19.1 | B85: 185 mm2, 3-core, Type A 6.35/11kV | C85: metres | D85: 100 | F85: =E85*D85 -> 0
A86: =A84+1 -> 20 | B86: INSTALLATION OF MEDIUM VOLTAGE POWER CABLES | F86: =SUBTOTAL(9,F87:F88) -> 0
A87: =A86+0.1 -> 20.1 | B87: XLPE 1c x 240mm2 6.35/11kV | C87: metres | D87: 100 | F87: =E87*D87 -> 0
A88: =A87+0.1 -> 20.2 | B88: XLPE 3c x 185mm2 6.35/11kV | C88: metres | D88: 100 | F88: 0
A89: =A86+1 -> 21 | B89: TERMINATION OF MEDIUM VOLTAGE POWER CABLES Terminations shall include cable numbers on both ends and installation of termination kits but excludes the supply of the termination kits | F89: =SUBTOTAL(9,F90:F92) -> 0
A90: =A89+0.1 -> 21.1 | B90: PILC 3c x 240mm2 6.35/11kV | C90: Each | D90: 4 | F90: =E90*D90 -> 0
A91: =A90+0.1 -> 21.2 | B91: XLPE 1c x 240mm2 6.35/11kV | C91: Each | D91: 12 | F91: 0
A92: 21.3 | B92: XLPE 3c x 185mm2 6.35/11kV | C92: Each | D92: 16 | F92: 0
A93: =A89+1 -> 22 | B93: TESTING OF MEDIUM VOLTAGE POWER CABLES VLF Testing of new installed cables | F93: =SUBTOTAL(9,F94) -> 0
A94: =A93+0.1 -> 22.1 | B94: XLPE 3c x 185mm2 6.35/11kV | C94: Each | D94: 8 | F94: =E94*D94 -> 0
A95: =A93+1 -> 23 | B95: SUPPLY AND DELIVER OF NETWORK EQUIPEMENT | F95: =SUBTOTAL(9,F96) -> 0
A96: =A95+0.1 -> 23.1 | B96: Network Rack | C96: Each | D96: 1 | F96: =E96*D96 -> 0
A97: =A96+0.1 -> 23.2 | B97: Network switch | C97: Each | D97: 1 | F97: =E97*D97 -> 0
A98: 23.3 | B98: Cat 6 cabeling | C98: Sum | D98: 1 | F98: 0
A99: 23.4 | B99: Power supply from BTU to network rack | C99: Sum | D99: 1 | F99: 0
A100: =A95+1 -> 24 | B100: INSTALLATION AND COMMISSIONING OF NETWORK EQUIPEMENT | F100: =SUBTOTAL(9,F101) -> 0
A101: =A100+0.1 -> 24.1 | B101: Network Rack | C101: Each | D101: 1 | F101: =E101*D101 -> 0
A102: =A101+0.1 -> 24.2 | B102: Network switch | C102: Each | D102: 1 | F102: 0
A103: 24.3 | B103: Cat 6 cabeling between relays, meters and switch | C103: Sum | D103: 1 | F103: 0
A104: 24.4 | B104: Power supply from BTU to network rack | C104: Sum | D104: 1 | F104: 0
A105: 24.5 | B105: Verify all communication is functional | C105: Sum | D105: 2 | F105: =E105*D105 -> 0
A106: =A100+1 -> 25 | B106: DAYWORK UNIT RATES: LABOUR Note that the quantities indicated below are only for evaluation purposes and to determine the contract unit rates. The final quantities will be based on works orders. | F106: =SUBTOTAL(9, F107:F112) -> 0
A107: =A106+0.1 -> 25.1 | B107: Daywork | C107: Unit rate per hour | D107: 500 | F107: =E107*D107 -> 0
A108: =A107+0.1 -> 25.2 | B108: Labour | C108: Unit rate per hour | D108: 500 | F108: 0
A109: 25.3 | B109: Unskilled labourers | C109: Unit rate per hour | D109: 500 | F109: 0
A110: 25.4 | B110: Semi - skilled labourers | C110: Unit rate per hour | D110: 500 | F110: 0
A111: 25.5 | B111: Artisans | C111: Unit rate per hour | D111: 500 | F111: 0
A112: 25.6 | B112: Foreman/supervision | C112: Unit rate per hour | D112: 500 | F112: 0
A113: =A106+1 -> 26 | B113: PLANT UNIT RATES: Note that the quantities indicated below are only for evaluation purposes and to determine the contract unit rates. The final quantities will be based on works orders | F113: =SUBTOTAL(9, F114) -> 0
A114: =A113+0.1 -> 26.1 | B114: Plant | C114: Unit rate per day | D114: 5 | F114: =E114*D114 -> 0
A115: =A113+1 -> 27 | B115: TRANSPORT UNIT RATES: LABOUR Note that the quantities indicated below are only for evaluation purposes and to determine the contract unit rates. The final quantities will be based on works orders | F115: =SUBTOTAL(9, F116) -> 0
A116: =A115+0.1 -> 27.1 | B116: Transport - specify | C116: Unit rate per km | D116: 2000 | F116: 0
B118: CENTURION DATA CENTRE SUBTOTAL PRICE (EXCL VAT) | F118: =+SUBTOTAL(9,F16:F116) -> 0
A120: BETA DATA CENTRE
A121: =A115+1 -> 28 | B121: PRELIMINARY AND GENERAL | F121: =SUBTOTAL(9,F122:F125) -> 0
A122: =A121+0.1 -> 28.1 | B122: Preliminary and General work, services meetings and inspections for which no specific items are listed in the price schedule. | C122: Lump Sum | D122: 1 | F122: =E122*D122 -> 0
A123: =A122+0.1 -> 28.2 | B123: Provide for storage of plant and equipment on site including protection thereof and for obtaining insurance called for in terms of this contract. | C123: Lump Sum | D123: 1 | F123: =E123*D123 -> 0
A124: 28.3 | B124: Documents, Drawings, and Manufacturing and Commissioning Data Books | C124: Lump Sum | D124: 1 | F124: 0
A125: 28.4 | B125: Provide "as-built" drawings | C125: Lump Sum | D125: 1 | F125: 0
A126: 28.5 | B126: Provide and maintain a quality system | C126: Lump Sum | D126: 1 | F126: 0
A127: =A121+1 -> 29 | B127: CONTRACTORS SITE ESTABLISHMENT | F127: =SUBTOTAL(9, F128:F128) -> 0
A128: =A127+0.1 -> 29.1 | B128: Fixed charges | C128: Lump Sum | D128: 1 | F128: =E128*D128 -> 0
A129: =A127+1 -> 30 | B129: 11KV SWITCHBOARDS - DESIGN, MANUFACTURE AND TEST Full compensation for the contractor's obligations to comply with the general design criteria shall be included in the tendered rates for the relevant items of equipment specified in other sections of these specifications | F129: =SUBTOTAL(9,F130:F134) -> 0
A130: =A129+0.1 -> 30.1 | B130: INCOMER PANEL | C130: Each | D130: 2 | F130: =E130*D130 -> 0
A131: =A130+0.1 -> 30.2 | B131: TRANSFORMER FEEDER PANEL | C131: Each | D131: 3 | F131: 0
A132: 30.3 | B132: PFC FEEDER PANEL | C132: Each | D132: 1 | F132: 0
A133: 30.4 | B133: 110V DC BATTERY CHARGER | C133: Each | D133: 1 | F133: =E133*D133 -> 0
A134: 30.5 | B134: POWER FACTOR CORRECTION | C134: Each | D134: 1 | F134: =E134*D134 -> 0
A135: =A129+1 -> 31 | B135: 11KV SWITCHBOARDS - FACTORY ACCEPTANCE TESTING All costs for equipment, labour and other expenses for the factory testing of equipment shall be included in the tendered rates for testing. All additional tests specified in the standard and detail specifications shall also be included in the tendered rates. | F135: =SUBTOTAL(9,F136:F140) -> 0
A136: =A135+0.1 -> 31.1 | B136: INCOMER PANEL | C136: Each | D136: 2 | F136: =E136*D136 -> 0
A137: =A136+0.1 -> 31.2 | B137: TRANSFORMER FEEDER PANEL | C137: Each | D137: 3 | F137: 0
A138: 31.3 | B138: PFC FEEDER PANEL | C138: Each | D138: 1 | F138: 0
A139: 31.4 | B139: 110V DC BATTERY CHARGER | C139: Each | D139: 1 | F139: =E139*D139 -> 0
A140: 31.5 | B140: POWER FACTOR CORRECTION | C140: Each | D140: 1 | F140: =E140*D140 -> 0
A141: =A135+1 -> 32 | B141: 11KV SWITCHBOARDS - DELIVERY AND OFF-LOADING All costs for preparing panels for shipping loading at works, transportation from works to site. Cost for packing material, wrapping or crating of panels to be included. Cost for off loading on site and placing panels in designated laydown area including required barricading and protection on site | F141: =SUBTOTAL(9,F142:F146) -> 0
A142: =A141+0.1 -> 32.1 | B142: INCOMER PANEL | C142: Each | D142: 2 | F142: =E142*D142 -> 0
A143: =A142+0.1 -> 32.2 | B143: TRANSFORMER FEEDER PANEL | C143: Each | D143: 3 | F143: 0
A144: 32.3 | B144: PFC FEEDER PANEL | C144: Each | D144: 1 | F144: 0
A145: 32.4 | B145: 110V DC BATTERY CHARGER | C145: Each | D145: 1 | F145: =E145*D145 -> 0
A146: 32.5 | B146: POWER FACTOR CORRECTION | C146: Each | D146: 1 | F146: =E146*D146 -> 0
A147: =A141+1 -> 33 | B147: 11KV SWITCHBOARDS - REMOVAL AND DISPOSAL All costs for equipment, labour and other expenses for the on-site removal of the existing switchgear shall be included in the tendered rates. Disconnecting of existing cables, marking of cable cores for cables that are to be reused to be included. Disconnecting of panel interconnecting bolts busbar bolts and removal of Pnaels from room, loading and Transportation off site for Disposal of the Panels off site. Disposal Certificate to be submitted and Disposed equipment to be Credited to SITA | F147: =SUBTOTAL(9,F148:F152) -> 0
A148: =A147+0.1 -> 33.1 | B148: INCOMER PANEL | C148: Each | D148: 2 | F148: =E148*D148 -> 0
A149: =A148+0.1 -> 33.2 | B149: TRANSFORMER FEEDER PANEL | C149: Each | D149: 3 | F149: 0
A150: 33.3 | B150: PFC FEEDER PANEL | C150: Each | D150: 1 | F150: 0
A151: 33.4 | B151: DC BATTERY CHARGER | C151: Each | D151: 1 | F151: =E151*D151 -> 0
A152: 33.5 | B152: POWER FACTOR CORRECTION UNIT | C152: Each | D152: 1 | F152: =E152*D152 -> 0
A153: =A147+1 -> 34 | B153: 11KV SWITCHBOARDS - INSTALL All cost for moving of the panels from designated storage area into the room to be included. Removal of pacckage materials, placing panels in position, installation of busbars as well as bolting down to floor. | F153: =SUBTOTAL(9,F154:F158) -> 0
A154: =A153+0.1 -> 34.1 | B154: INCOMER PANEL | C154: Each | D154: 2 | F154: =E154*D154 -> 0
A155: =A154+0.1 -> 34.2 | B155: TRANSFORMER FEEDER PANEL | C155: Each | D155: 3 | F155: 0
A156: 34.3 | B156: PFC FEEDER PANEL | C156: Each | D156: 1 | F156: 0
A157: 34.4 | B157: 110V DC BATTERY CHARGER | C157: Each | D157: 1 | F157: =E157*D157 -> 0
A158: 34.5 | B158: POWER FACTOR CORRECTION | C158: Each | D158: 1 | F158: =E158*D158 -> 0
A159: =A153+1 -> 35 | B159: 11KV SWITCHBOARDS - COMMISSIONING All costs for equipment, labour and other expenses for the on-site testing and commissioning of equipment shall be included in the tendered rates for testing and commissioning as set out in the measurement and payment clauses of each piece of equipment and in the schedule of quantities. Any additional tests specified in the standard and detail specifications shall also be included in the tendered rates. | F159: =SUBTOTAL(9,F160:F165) -> 0
A160: =A159+0.1 -> 35.1 | B160: INCOMER PANEL | C160: Each | D160: 2 | F160: =E160*D160 -> 0
A161: =A160+0.1 -> 35.2 | B161: TRANSFORMER FEEDER PANEL | C161: Each | D161: 3 | F161: 0
A162: 35.3 | B162: PFC FEEDER PANEL | C162: Each | D162: 1 | F162: 0
A163: 35.4 | B163: 110V DC BATTERY CHARGER | C163: Each | D163: 1 | F163: =E163*D163 -> 0
A164: 35.5 | B164: POWER FACTOR CORRECTION | C164: Each | D164: 1 | F164: =E164*D164 -> 0
A165: 35.6 | B165: COMPLETE SWITCHBOARD ASSEMBLY | C165: Sum | D165: 1 | F165: =E165*D165 -> 0
A166: =A159+1 -> 36 | B166: SUPPLY, DELIVER AND OFF LOADING OF LOW VOLTAGE PVC FIRE RETARDENT CABLES TO SITE | F166: =SUBTOTAL(9,F167:F167) -> 0
A167: =A166+0.1 -> 36.1 | B167: 2.4 mm2, 7-core, Cu PVC/PVC/SWA/PVC 600/1000V SABS 1507 | C167: metres | D167: 100 | F167: =E167*D167 -> 0
A168: =A166+1 -> 37 | B168: DISCONNECTING OF LOW VOLTAGE POWER CABLES | F168: =SUBTOTAL(9,F169) -> 0
A169: =A168+0.1 -> 37.1 | B169: 2.4 mm2, 7-core, Cu PVC/PVC/SWA/PVC 600/1000V SABS 1507 | C169: Each | D169: 12 | F169: =E169*D169 -> 0
A170: =A168+1 -> 38 | B170: REMOVAL OF LOW VOLTAGE CONTROL CABLES | F170: =SUBTOTAL(9,F171:F171) -> 0
A171: =A170+0.1 -> 38.1 | B171: 2.4 mm2, 7-core, Cu PVC/PVC/SWA/PVC 600/1000V SABS 1507 | C171: metres | D171: 100 | F171: =E171*D171 -> 0
A172: =A170+1 -> 39 | B172: INSTALLATION OF LOW VOLTAGE POWER CABLES | F172: =SUBTOTAL(9,F173:F173) -> 0
A173: =A172+0.1 -> 39.1 | B173: 2.4 mm2, 7-core, Cu PVC/PVC/SWA/PVC 600/1000V SABS 1507 | C173: metres | D173: 100 | F173: =E173*D173 -> 0
A174: =A172+1 -> 40 | B174: TERMINATION OF LOW VOLTAGE POWER CABLES | F174: =SUBTOTAL(9,F175) -> 0
A175: =A174+0.1 -> 40.1 | B175: 2.4 mm2, 7-core, Cu PVC/PVC/SWA/PVC 600/1000V SABS 1507 | C175: Each | D175: 12 | F175: =E175*D175 -> 0
A176: =A174+1 -> 41 | B176: TESTING OF LOW VOLTAGE CONTROL CABLES | F176: =SUBTOTAL(9,F177:F177) -> 0
A177: =A176+0.1 -> 41.1 | B177: 2.4 mm2, 7-core, Cu PVC/PVC/SWA/PVC 600/1000V SABS 1507 | C177: metres | D177: 50 | F177: =E177*D177 -> 0
A178: =A176+1 -> 42 | B178: SUPPLY, DELIVER AND OFF LOADING OF MEDIUM VOLTAGE CROSS-LINKED POLYETHELENE INSULATED FIRE RETARDENT POWER CABLES | F178: =SUBTOTAL(9,F179:F180) -> 0
A179: =A178+0.1 -> 42.1 | B179: 240 mm2, 1-core, Type A 6.35/11kV | C179: metres | D179: 100 | F179: =E179*D179 -> 0
A180: =A179+0.1 -> 42.2 | B180: 185 mm2, 3-core, Type A 6.35/11kV | C180: metres | D180: 100 | F180: 0
A181: =A178+1 -> 43 | B181: SUPPLY, DELIVER AND OFF LOADING OF MEDIUM VOLTAGE TRIFOCATING JOINTS | F181: =SUBTOTAL(9,F182) -> 0
A182: =A181+0.1 -> 43.1 | B182: XLPE 3 x 1c x 240mm2 Cu to PILC 1 x 3c x 240mm2 Cu 6.35/11kV | C182: Each | D182: 4 | F182: =E182*D182 -> 0
A183: =A181+1 -> 44 | B183: SUPPLY AND DELIVERY OF MEDIUM VOLTAGE INDOOR CABLE TERMINATION KITS | F183: =SUBTOTAL(9,F184:F186) -> 0
A184: =A183+0.1 -> 44.1 | B184: PILC 3c x 240mm2 6.35/11kV | C184: Each | D184: 4 | F184: =E184*D184 -> 0
A185: =A184+0.1 -> 44.2 | B185: XLPE 1c x 240mm2 6.35/11kV | C185: Each | D185: 12 | F185: 0
A186: 44.3 | B186: XLPE 3c x 185mm2 6.35/11kV | C186: Each | D186: 12 | F186: 0
A187: =A183+1 -> 45 | B187: DISCONNECTING OF MEDIUM VOLTAGE POWER CABLES | F187: =SUBTOTAL(9,F188:F189) -> 0
A188: =A187+0.1 -> 45.1 | B188: PILC 3c x 240mm2 6.35/11kV | C188: Each | D188: 2 | F188: =E188*D188 -> 0
A189: =A188+0.1 -> 45.2 | B189: XLPE 3 x 3c x 185mm2 6.35/11kV | C189: Each | D189: 6 | F189: 0
A190: =A187+1 -> 46 | B190: REMOVAL OF MEDIUM VOLTAGE POWER CABLES Rate to include for opening of cable ways breaking of fire proofing and loading and disposal of cables | F190: =SUBTOTAL(9,F191) -> 0
A191: =A190+0.1 -> 46.1 | B191: 185 mm2, 3-core, Type A 6.35/11kV | C191: metres | D191: 100 | F191: =E191*D191 -> 0
A192: =A190+1 -> 47 | B192: INSTALLATION OF MEDIUM VOLTAGE POWER CABLES | F192: =SUBTOTAL(9,F193:F194) -> 0
A193: =A192+0.1 -> 47.1 | B193: XLPE 1c x 240mm2 6.35/11kV | C193: metres | D193: 100 | F193: =E193*D193 -> 0
A194: =A193+0.1 -> 47.2 | B194: XLPE 3c x 185mm2 6.35/11kV | C194: metres | D194: 100 | F194: 0
A195: =A192+1 -> 48 | B195: TERMINATION OF MEDIUM VOLTAGE POWER CABLES Terminations shall include cable numbers on both ends and installation of termination kits but excludes the supply of the termination kits | F195: =SUBTOTAL(9,F196:F198) -> 0
A196: =A195+0.1 -> 48.1 | B196: PILC 3c x 240mm2 6.35/11kV | C196: Each | D196: 4 | F196: =E196*D196 -> 0
A197: =A196+0.1 -> 48.2 | B197: XLPE 1c x 240mm2 6.35/11kV | C197: Each | D197: 12 | F197: 0
A198: 48.3 | B198: XLPE 3c x 185mm2 6.35/11kV | C198: Each | D198: 12 | F198: 0
A199: =A195+1 -> 49 | B199: TESTING OF MEDIUM VOLTAGE POWER CABLES VLF Testing of new installed cables | F199: =SUBTOTAL(9,F200:F200) -> 0
A200: =A199+0.1 -> 49.1 | B200: XLPE 3c x 185mm2 6.35/11kV | C200: Each | D200: 6 | F200: =E200*D200 -> 0
A201: =A199+1 -> 50 | B201: SUPPLY AND DELIVER OF NETWORK EQUIPEMENT | F201: =SUBTOTAL(9,F202) -> 0
A202: =A201+0.1 -> 50.1 | B202: Network Rack | C202: Each | D202: 1 | F202: =E202*D202 -> 0
A203: =A202+0.1 -> 50.2 | B203: Network switch | C203: Each | D203: 1 | F203: 0
A204: 50.3 | B204: Cat 6 cabeling | C204: Sum | D204: 1 | F204: 0
A205: 50.4 | B205: Power supply from BTU to network rack | C205: Sum | D205: 1 | F205: 0
... 26 more rows
